fUSD/lending_fUSD_20240322
["ID","MTS","AMOUNT","RATE_DAILY","PERIOD"]
[320083633,1711141076204,-150.0,0.00045479,30]
[320083634,1711141076229,-151.032215,0.00045498,45]
[320083635,1711141076252,-333.031912,0.00045498,56]
[320083636,1711141076276,-250.0,0.000455,120]
[320083637,1711141076299,-150.0,0.00045528,30]
[320083638,1711141076322,-780.41480548,0.00045529,30]
[320083639,1711141076344,-284.76107608,0.00045529,30]
[320083640,1711141076368,-355.22702406,0.00045529,30]
[320083641,1711141076391,-150.0,0.00045539,30]
[320083642,1711141076414,-546.0,0.0004555,30]
[320083643,1711141076437,-150.0,0.00045558,30]
[320083644,1711141076460,-780.41480548,0.00045579,30]
[320083645,1711141076482,-284.76107608,0.00045579,30]
[320083646,1711141076505,-355.22702406,0.00045579,30]
[320083647,1711141076528,-5959.03,0.00045601,30]
[320083648,1711141076552,-5959.03,0.00045601,30]
[320083649,1711141076575,-500.0,0.0004561,30]
[320083650,1711141076598,-150.0,0.00045616,30]
[320083651,1711141076622,-150.0,0.00045616,30]
[320083652,1711141076645,-150.0,0.00045616,30]
[320083653,1711141076671,-150.0,0.00045616,30]
[320083654,1711141076695,-150.0,0.00045616,30]
[320083655,1711141076718,-500.0,0.00045618,30]
[320083656,1711141076741,-780.41480548,0.00045629,30]
[320083657,1711141076765,-284.76107608,0.00045629,30]
[320083658,1711141076788,-355.22702406,0.00045629,30]
[320083659,1711141076811,-150.0,0.00045675,30]
[320083660,1711141076834,-780.41480548,0.00045679,30]
[320083661,1711141076857,-284.76107608,0.00045679,30]
[320083662,1711141076881,-355.22702406,0.00045679,30]
[320083663,1711141076907,-150.0,0.00045693,30]
[320083664,1711141076930,-150.0,0.00045704,30]
[320083665,1711141076954,-780.41480548,0.00045728,30]
[320083666,1711141076980,-284.76107608,0.00045728,30]
[320083667,1711141077004,-355.22702406,0.00045728,30]
[320083668,1711141077027,-150.0,0.0004577,30]
[320083669,1711141077050,-780.41480548,0.00045778,30]
[320083670,1711141077074,-284.76107608,0.00045778,30]
[320083671,1711141077097,-355.22702406,0.00045778,30]
[320083672,1711141077120,-150.0,0.00045793,30]
[320083673,1711141077145,-150.0,0.00045793,30]
[320083674,1711141077170,-333.031912,0.00045798,56]
[320083675,1711141077194,-780.41480548,0.00045828,30]
[320083676,1711141077217,-284.76107608,0.00045828,30]
[320083677,1711141077240,-355.22702406,0.00045828,30]
[320083678,1711141077263,-150.0,0.00045848,30]
[320083679,1711141077285,-780.41480548,0.00045878,30]
[320083680,1711141077308,-284.76107608,0.00045878,30]
[320083681,1711141077331,-355.22702406,0.00045878,30]
[320083682,1711141077354,-150.0,0.00045881,30]
[320083683,1711141077376,-500.0,0.00045892,30]
[320083684,1711141077401,-1091.0,0.000459,30]
[320083685,1711141077432,-150.0,0.0004591,30]
[320083686,1711141077456,-150.0,0.00045925,30]
[320083687,1711141077480,-780.41480548,0.00045928,30]
[320083688,1711141077506,-284.76107608,0.00045928,30]
[320083689,1711141077531,-355.22702406,0.00045928,30]
[320083690,1711141077555,-150.0,0.00045969,30]
[320083691,1711141077582,-780.41480548,0.00045978,30]
[320083692,1711141077607,-284.76107608,0.00045978,30]
[320083693,1711141077632,-355.22702406,0.00045978,30]
[320083694,1711141077657,-1000.0,0.00045999,120]
[320083695,1711141077687,-200000.0,0.00046,36]
[320083696,1711141077712,-1000.0,0.00046,30]
[320083697,1711141077952,-450.84269456,0.00046,30]
[320083698,1711141077977,-308.25109614,0.00046,48]
[320083699,1711141078002,-250.0,0.00046,120]
[320083700,1711141078025,-32701.0,0.00046,120]
[320083701,1711141078049,-1000.0,0.00046,90]
[320083702,1711141078073,-1000.0,0.00046,120]
[320083703,1711141078098,-2000.0,0.00046,61]
[320083704,1711141078121,-42880.87770882,0.00046,90]
[320083705,1711141078146,-25000.0,0.00046,120]
[320083706,1711141078168,-3000.0,0.00046,120]
[320083707,1711141078194,-150.0,0.00046002,30]
[320083708,1711141078216,-780.41480548,0.00046027,30]
[320083709,1711141078239,-284.76107608,0.00046027,30]
[320083710,1711141078262,-355.22702406,0.00046027,30]
[320083711,1711141078286,-150.0,0.00046027,30]
[320083712,1711141078309,-150.0,0.00046027,30]
[320083713,1711141078333,-150.0,0.00046049,120]
[320083714,1711141078355,-150.0,0.00046057,30]
[320083715,1711141078379,-780.41480548,0.00046077,30]
[320083716,1711141078408,-284.76107608,0.00046077,30]
[320083717,1711141078432,-355.22702406,0.00046077,30]
[320083718,1711141078456,-150.0,0.00046079,30]
[320083719,1711141078480,-780.41480548,0.00046127,30]
[320083720,1711141078509,-284.76107608,0.00046127,30]
[320083721,1711141078534,-355.22702406,0.00046127,30]
[320083722,1711141078557,-150.0,0.00046145,30]
[320083723,1711141078580,-150.0,0.00046145,30]
[320083724,1711141078607,-150.0,0.00046156,30]
[320083725,1711141078632,-500.0,0.00046166,30]
[320083726,1711141078658,-780.41480548,0.00046177,30]
[320083727,1711141078683,-284.76107608,0.00046177,30]
[320083728,1711141078708,-355.22702406,0.00046177,30]
[320083729,1711141078734,-222.031912,0.00046198,44]
[320083730,1711141078758,-780.41480548,0.00046227,30]
[320083731,1711141078783,-284.76107608,0.00046227,30]
[320083732,1711141078808,-355.22702406,0.00046227,30]
[320083733,1711141078833,-150.0,0.00046233,30]
[320083734,1711141078856,-150.0,0.00046233,30]
[320083735,1711141078881,-150.0,0.00046262,30]
[320083736,1711141078906,-780.41480548,0.00046276,30]
[320083737,1711141078928,-284.76107608,0.00046276,30]
[320083738,1711141078952,-355.22702406,0.00046276,30]
[320083739,1711141078978,-342.50508093,0.00046294,30]
[320083740,1711141079007,-1027.0,0.00046305,30]
[320083741,1711141079031,-150.0,0.0004631,30]
[320083742,1711141079055,-214.0,0.0004632,30]
[320083743,1711141079078,-150.0,0.00046321,30]
[320083744,1711141079101,-780.41480548,0.00046326,30]
[320083745,1711141079125,-284.76107608,0.00046326,30]
[320083746,1711141079149,-355.22702406,0.00046326,30]
[320083747,1711141079172,-1091.0,0.0004635,30]
[320083748,1711141079199,-164.24866839,0.00046356,60]
[320083749,1711141079223,-780.41480548,0.00046376,30]
[320083750,1711141079246,-284.76107608,0.00046376,30]
[320083751,1711141079269,-355.22702406,0.00046376,30]
[320083752,1711141079292,-150.0,0.0004638,30]
[320083753,1711141079316,-185.795434,0.00046381,30]
[320083754,1711141079339,-153.974939,0.00046381,30]
[320083755,1711141079362,-184.85975,0.00046381,30]
[320083756,1711141079386,-180.553994,0.00046381,30]
[320083757,1711141079409,-164.753399,0.00046381,30]
[320083758,1711141079438,-174.493421,0.00046381,30]
[320083759,1711141079461,-168.91783,0.00046381,30]
[320083760,1711141079485,-166.898498,0.00046381,30]
[320083761,1711141079511,-198.869468,0.00046381,30]
[320083762,1711141079535,-185.465661,0.00046381,30]
[320083763,1711141079559,-179.786177,0.00046381,30]
[320083764,1711141079584,-185.465661,0.00046381,30]
[320083765,1711141079608,-166.898498,0.00046381,30]
[320083766,1711141079634,-198.869468,0.00046381,30]
[320083767,1711141079658,-179.786177,0.00046381,30]
[320083768,1711141079684,-155.486186,0.00046381,30]
[320083769,1711141079710,-197.25121,0.00046381,30]
[320083770,1711141079736,-183.080546,0.00046381,30]
[320083771,1711141079759,-158.78043,0.00046381,30]
[320083772,1711141079784,-166.25359,0.00046381,30]
[320083773,1711141079809,-153.333338,0.00046381,30]
[320083774,1711141079834,-185.165178,0.00046381,30]
[320083775,1711141079858,-186.161046,0.00046381,30]
[320083776,1711141079884,-172.564782,0.00046381,30]
[320083777,1711141079909,-150.0,0.00046387,30]
[320083778,1711141079934,-150.0,0.00046409,30]
[320083779,1711141079958,-780.41480548,0.00046426,30]
[320083780,1711141079982,-284.76107608,0.00046426,30]
[320083781,1711141080006,-355.22702406,0.00046426,30]
[320083782,1711141080030,-150.0,0.00046436,120]
[320083783,1711141080053,-500.0,0.0004644,30]
[320083784,1711141080083,-150.0,0.00046464,30]
[320083785,1711141080109,-780.41480548,0.00046476,30]
[320083786,1711141080133,-284.76107608,0.00046476,30]
[320083787,1711141080165,-355.22702406,0.00046476,30]
[320083788,1711141080192,-150.0,0.00046497,30]
[320083789,1711141080218,-150.0,0.00046497,30]
[320083790,1711141080244,-151.032215,0.00046498,46]
[320083791,1711141080270,-222.031912,0.00046498,44]
[320083792,1711141080294,-250.0,0.000465,120]
[320083793,1711141080319,-780.41480548,0.00046525,30]
[320083794,1711141080343,-284.76107608,0.00046525,30]
[320083795,1711141080367,-355.22702406,0.00046525,30]
[320083796,1711141080397,-150.0,0.00046541,30]
[320083797,1711141080422,-780.41480548,0.00046575,30]
[320083798,1711141080447,-284.76107608,0.00046575,30]
[320083799,1711141080472,-355.22702406,0.00046575,30]
[320083800,1711141080682,-150.0,0.00046575,30]
[320083801,1711141080745,-1206.33,0.00046575,120]
[320083802,1711141080771,-150.0,0.00046585,30]
[320083803,1711141080796,-150.0,0.00046614,30]
[320083804,1711141080821,-150.0,0.00046618,30]
[320083805,1711141080844,-780.41480548,0.00046625,30]
[320083806,1711141080869,-284.76107608,0.00046625,30]
[320083807,1711141080893,-355.22702406,0.00046625,30]
[320083808,1711141080918,-164.24866839,0.00046658,60]
[320083809,1711141080942,-4453.556,0.0004667,120]
[320083810,1711141080965,-150.0,0.00046673,30]
[320083811,1711141080989,-780.41480548,0.00046675,30]
[320083812,1711141081015,-284.76107608,0.00046675,30]
[320083813,1711141081039,-355.22702406,0.00046675,30]
[320083814,1711141081062,-150.0,0.00046695,30]
[320083815,1711141081087,-500.0,0.00046714,30]
[320083816,1711141081111,-780.41480548,0.00046725,30]
[320083817,1711141081136,-284.76107608,0.00046725,30]
[320083818,1711141081161,-355.22702406,0.00046725,30]
[320083819,1711141081186,-150.0,0.00046732,30]
[320083820,1711141081212,-150.0,0.00046761,30]
[320083821,1711141081235,-150.0,0.00046772,30]
[320083822,1711141081259,-780.41480548,0.00046775,30]
[320083823,1711141081285,-284.76107608,0.00046775,30]
[320083824,1711141081309,-355.22702406,0.00046775,30]
[320083825,1711141081335,-222.031912,0.00046798,44]
[320083826,1711141081359,-333.031912,0.00046798,56]
[320083827,1711141081382,-3221.00492391,0.000468,48]
[320083828,1711141081406,-780.41480548,0.00046824,30]
[320083829,1711141081430,-284.76107608,0.00046824,30]
[320083830,1711141081453,-355.22702406,0.00046824,30]
[320083831,1711141081477,-150.0,0.00046849,30]
[320083832,1711141081501,-150.0,0.00046849,30]
[320083833,1711141081527,-150.0,0.00046849,30]
[320083834,1711141081551,-150.0,0.00046849,30]
[320083835,1711141081579,-150.0,0.00046849,30]
[320083836,1711141081604,-150.0,0.00046849,30]
[320083837,1711141081628,-780.41480548,0.00046874,30]
[320083838,1711141081654,-284.76107608,0.00046874,30]
[320083839,1711141081677,-355.22702406,0.00046874,30]
[320083840,1711141081702,-546.0,0.00046882,30]
[320083841,1711141081727,-780.41480548,0.00046924,30]
[320083842,1711141081751,-284.76107608,0.00046924,30]
[320083843,1711141081775,-355.22702406,0.00046924,30]
[320083844,1711141081800,-150.0,0.00046926,30]
[320083845,1711141081824,-150.0,0.00046937,30]
[320083846,1711141081848,-150.0,0.00046967,30]
[320083847,1711141081873,-780.41480548,0.00046974,30]
[320083848,1711141081900,-284.76107608,0.00046974,30]
[320083849,1711141081926,-355.22702406,0.00046974,30]
[320083850,1711141081952,-164.24866839,0.00046986,60]
[320083851,1711141081977,-500.0,0.00046988,30]
[320083852,1711141082001,-200000.0,0.00047,37]
[320083853,1711141082024,-50000.0,0.00047,60]
[320083854,1711141082048,-250.0,0.00047,120]
[320083855,1711141082071,-1000.0,0.00047,120]
[320083856,1711141082095,-2000.0,0.00047,62]
[320083857,1711141082118,-25000.0,0.00047,120]
[320083858,1711141082142,-25000.0,0.00047,120]
[320083859,1711141082167,-1000.0,0.00047,30]
[320083860,1711141082190,-150.0,0.00047003,30]
[320083861,1711141082213,-780.41480548,0.00047024,30]
[320083862,1711141082237,-284.76107608,0.00047024,30]
[320083863,1711141082261,-355.22702406,0.00047024,30]
[320083864,1711141082285,-150.0,0.00047025,30]
[320083865,1711141082308,-780.41480548,0.00047073,30]
[320083866,1711141082332,-284.76107608,0.00047073,30]
[320083867,1711141082355,-355.22702406,0.00047073,30]
[320083868,1711141082378,-150.0,0.0004708,30]
[320083869,1711141082409,-150.0,0.00047084,30]
[320083870,1711141082432,-150.0,0.00047113,30]
[320083871,1711141082455,-780.41480548,0.00047123,30]
[320083872,1711141082478,-284.76107608,0.00047123,30]
[320083873,1711141082502,-355.22702406,0.00047123,30]
[320083874,1711141082529,-150.0,0.00047123,30]
[320083875,1711141082553,-150.0,0.00047157,30]
[320083876,1711141082576,-780.41480548,0.00047173,30]
[320083877,1711141082600,-284.76107608,0.00047173,30]
[320083878,1711141082625,-355.22702406,0.00047173,30]
[320083879,1711141082653,-333.031912,0.00047198,56]
[320083880,1711141082676,-150.0,0.00047202,30]
[320083881,1711141082700,-150.0,0.00047202,30]
[320083882,1711141082723,-780.41480548,0.00047223,30]
[320083883,1711141082745,-284.76107608,0.00047223,30]
[320083884,1711141082769,-355.22702406,0.00047223,30]
[320083885,1711141082792,-150.0,0.00047235,30]
[320083886,1711141082815,-500.0,0.00047262,30]
[320083887,1711141082840,-780.41480548,0.00047273,30]
[320083888,1711141082863,-284.76107608,0.00047273,30]
[320083889,1711141082886,-355.22702406,0.00047273,30]
[320083890,1711141082914,-164.24866839,0.00047288,60]
[320083891,1711141082938,-150.0,0.0004729,30]
[320083892,1711141082961,-150.0,0.00047312,30]
[320083893,1711141082984,-150.0,0.00047319,30]
[320083894,1711141083007,-780.41480548,0.00047322,30]
[320083895,1711141083031,-284.76107608,0.00047322,30]
[320083896,1711141083053,-355.22702406,0.00047322,30]
[320083897,1711141083076,-780.41480548,0.00047372,30]
[320083898,1711141083100,-284.76107608,0.00047372,30]
[320083899,1711141083122,-355.22702406,0.00047372,30]
[320083900,1711141083148,-150.0,0.00047378,30]
[320083901,1711141083171,-150.0,0.00047389,30]
[320083902,1711141083193,-780.41480548,0.00047422,30]
[320083903,1711141083216,-284.76107608,0.00047422,30]
[320083904,1711141083444,-355.22702406,0.00047422,30]
[320083905,1711141083469,-150.0,0.00047436,30]
[320083906,1711141083493,-150.0,0.00047466,30]
[320083907,1711141083518,-150.0,0.00047466,30]
[320083908,1711141083542,-780.41480548,0.00047472,30]
[320083909,1711141083567,-284.76107608,0.00047472,30]
[320083910,1711141083593,-355.22702406,0.00047472,30]
[320083911,1711141083619,-2000.0,0.00047475,120]
[320083912,1711141083652,-151.032215,0.00047498,47]
[320083913,1711141083678,-222.031912,0.00047498,44]
[320083914,1711141083703,-250.0,0.000475,120]
[320083915,1711141083728,-1000.0,0.000475,120]
[320083916,1711141083752,-780.41480548,0.00047522,30]
[320083917,1711141083776,-284.76107608,0.00047522,30]
[320083918,1711141083799,-355.22702406,0.00047522,30]
[320083919,1711141083823,-500.0,0.00047536,30]
[320083920,1711141083846,-150.0,0.00047543,30]
[320083921,1711141083871,-150.0,0.00047554,30]
[320083922,1711141083898,-150.0,0.00047554,30]
[320083923,1711141083921,-780.41480548,0.00047572,30]
[320083924,1711141083945,-284.76107608,0.00047572,30]
[320083925,1711141083967,-355.22702406,0.00047572,30]
[320083926,1711141083990,-164.24866839,0.00047589,60]
[320083927,1711141084013,-150.0,0.0004762,30]
[320083928,1711141084035,-780.41480548,0.00047621,30]
[320083929,1711141084058,-284.76107608,0.00047621,30]
[320083930,1711141084081,-355.22702406,0.00047621,30]
[320083931,1711141084103,-150.0,0.00047642,30]
[320083932,1711141084127,-780.41480548,0.00047671,30]
[320083933,1711141084153,-284.76107608,0.00047671,30]
[320083934,1711141084176,-355.22702406,0.00047671,30]
[320083935,1711141084198,-150.0,0.00047671,30]
[320083936,1711141084222,-150.0,0.00047671,30]
[320083937,1711141084244,-150.0,0.00047697,30]
[320083938,1711141084266,-780.41480548,0.00047721,30]
[320083939,1711141084290,-284.76107608,0.00047721,30]
[320083940,1711141084313,-355.22702406,0.00047721,30]
[320083941,1711141084335,-150.0,0.0004773,30]
[320083942,1711141084358,-780.41480548,0.00047771,30]
[320083943,1711141084380,-284.76107608,0.00047771,30]
[320083944,1711141084403,-355.22702406,0.00047771,30]
[320083945,1711141084425,-150.0,0.00047774,30]
[320083946,1711141084447,-198.869468,0.00047786,30]
[320083947,1711141084469,-155.486186,0.00047786,30]
[320083948,1711141084491,-158.78043,0.00047786,30]
[320083949,1711141084516,-172.564782,0.00047786,30]
[320083950,1711141084539,-150.0,0.00047789,30]
[320083951,1711141084565,-333.031912,0.00047798,56]
[320083952,1711141084590,-150.0,0.00047818,30]
[320083953,1711141084612,-214.0,0.0004782,30]
[320083954,1711141084635,-780.41480548,0.00047821,30]
[320083955,1711141084660,-284.76107608,0.00047821,30]
[320083956,1711141084683,-355.22702406,0.00047821,30]
[320083957,1711141084706,-150.0,0.00047851,30]
[320083958,1711141084728,-780.41480548,0.0004787,30]
[320083959,1711141084751,-284.76107608,0.0004787,30]
[320083960,1711141084775,-355.22702406,0.0004787,30]
[320083961,1711141084798,-164.24866839,0.0004789,60]
[320083962,1711141084823,-50098.31552537,0.000479,30]
[320083963,1711141084846,-8621.0,0.000479,120]
[320083964,1711141084869,-118516.68455574,0.000479,120]
[320083965,1711141084896,-150.0,0.00047906,30]
[320083966,1711141084921,-150.0,0.00047906,30]
[320083967,1711141084949,-780.41480548,0.0004792,30]
[320083968,1711141084974,-284.76107608,0.0004792,30]
[320083969,1711141084999,-355.22702406,0.0004792,30]
[320083970,1711141085023,-150.0,0.00047928,30]
[320083971,1711141085051,-780.41480548,0.0004797,30]
[320083972,1711141085078,-284.76107608,0.0004797,30]
[320083973,1711141085104,-355.22702406,0.0004797,30]
[320083974,1711141085130,-150.0,0.00047994,30]
[320083975,1711141085158,-1000.0,0.00047999,120]
[320083976,1711141085185,-200000.0,0.00048,38]
[320083977,1711141085209,-308.25109614,0.00048,48]
[320083978,1711141085233,-1068.09953844,0.00048,120]
[320083979,1711141085258,-11859.0,0.00048,30]
[320083980,1711141085285,-3000.0,0.00048,120]
[320083981,1711141085309,-27664.45339119,0.00048,30]
[320083982,1711141085333,-250.0,0.00048,120]
[320083983,1711141085356,-1000.0,0.00048,120]
[320083984,1711141085379,-1000.0,0.00048,120]
[320083985,1711141085407,-2000.0,0.00048,63]
[320083986,1711141085431,-33221.81070104,0.00048,20]
[320083987,1711141085454,-50248.0,0.00048,120]
[320083988,1711141085478,-1182.35918595,0.00048,120]
[320083989,1711141085503,-35329.60974452,0.00048,120]
[320083991,1711141101638,-1569.22667981,0.00025,30]
[320083992,1711141101958,-315.07901286,0.000305,30]
[320083993,1711141101982,-680.04879068,0.000309,30]
[320083994,1711141102016,-150.0,0.00032877,30]
[320083995,1711141102040,-178.98440615,0.00032877,30]
[320083996,1711141102090,-212.66494544,0.0004,30]
[320083997,1711141102113,-510.08710086,0.0004,30]
[320083998,1711141102135,-484.94963882,0.0004001,15]
[320083999,1711141102165,-618.94463025,0.0004161,30]
[320084000,1711141102206,-2365.43961642,0.00045131,120]
[320084001,1711141102230,-14670.39025548,0.00048,120]
[320084002,1711141102252,-87986.34832273,0.00048,30]
[320084003,1711141102569,-500.0,0.00048,20]
[320084004,1711141102594,-25462.32,0.00048,120]
[320084005,1711141102619,-1400.0,0.00048,30]
[320084006,1711141102643,-150.0,0.00048005,30]
[320084007,1711141102670,-780.41480548,0.0004802,30]
[320084008,1711141102694,-284.76107608,0.0004802,30]
[320084009,1711141102717,-355.22702406,0.0004802,30]
[320084010,1711141102741,-150.0,0.00048023,30]
[320084011,1711141102764,-780.41480548,0.0004807,30]
[320084012,1711141102786,-284.76107608,0.0004807,30]
[320084013,1711141102808,-355.22702406,0.0004807,30]
[320084014,1711141102831,-150.0,0.00048082,30]
[320084015,1711141102854,-150.0,0.00048082,30]
[320084016,1711141102876,-150.0,0.00048082,30]
[320084017,1711141102899,-150.0,0.00048082,30]
[320084018,1711141102923,-150.0,0.00048082,30]
[320084019,1711141102946,-500.0,0.00048084,30]
[320084020,1711141102968,-780.41480548,0.00048119,30]
[320084021,1711141102990,-284.76107608,0.00048119,30]
[320084022,1711141103012,-355.22702406,0.00048119,30]
[320084023,1711141103033,-150.0,0.00048141,30]
[320084024,1711141103057,-150.0,0.00048159,30]
[320084025,1711141103080,-780.41480548,0.00048169,30]
[320084026,1711141103101,-284.76107608,0.00048169,30]
[320084027,1711141103124,-355.22702406,0.00048169,30]
[320084028,1711141103148,-150.0,0.0004817,30]
[320084029,1711141103174,-222.031912,0.00048198,44]
[320084030,1711141103196,-546.0,0.00048213,30]
[320084031,1711141103219,-780.41480548,0.00048219,30]
[320084032,1711141103241,-284.76107608,0.00048219,30]
[320084033,1711141103264,-355.22702406,0.00048219,30]
[320084034,1711141103287,-150.0,0.00048219,30]
[320084035,1711141103312,-164.24866839,0.00048219,60]
[320084036,1711141103336,-150.0,0.00048236,30]
[320084037,1711141103358,-150.0,0.00048258,30]
[320084038,1711141103381,-150.0,0.00048258,30]
[320084039,1711141103403,-780.41480548,0.00048269,30]
[320084040,1711141103428,-284.76107608,0.00048269,30]
[320084041,1711141103451,-355.22702406,0.00048269,30]
[320084042,1711141103473,-500.0,0.000483,30]
[320084043,1711141103496,-500.0,0.000483,30]
[320084044,1711141103519,-500.0,0.000483,30]
[320084045,1711141103541,-500.0,0.000483,30]
[320084046,1711141103565,-500.0,0.000483,30]
[320084047,1711141103588,-500.0,0.000483,30]
[320084048,1711141103611,-500.0,0.000483,30]
[320084049,1711141103632,-500.0,0.000483,30]
[320084050,1711141103654,-500.0,0.000483,30]
[320084051,1711141103678,-500.0,0.000483,30]
[320084052,1711141103701,-500.0,0.000483,30]
[320084053,1711141103724,-500.0,0.000483,30]
[320084054,1711141103747,-500.0,0.000483,30]
[320084055,1711141103770,-500.0,0.000483,30]
[320084056,1711141103792,-500.0,0.000483,30]
[320084057,1711141103814,-500.0,0.000483,30]
[320084058,1711141103836,-500.0,0.000483,30]
[320084059,1711141103858,-500.0,0.000483,30]
[320084060,1711141103884,-150.0,0.00048313,30]
[320084061,1711141103907,-278.39510165,0.00048316,35]
[320084062,1711141103930,-25000.0,0.00048316,35]
[320084063,1711141103953,-5753.97632889,0.00048316,35]
[320084064,1711141103975,-2294.54436,0.00048316,35]
[320084065,1711141103997,-775.34820284,0.00048316,35]
[320084066,1711141104020,-211.66453089,0.00048316,35]
[320084067,1711141104042,-3670.70262876,0.00048316,35]
[320084068,1711141104064,-780.41480548,0.00048319,30]
[320084069,1711141104090,-284.76107608,0.00048319,30]
[320084070,1711141104114,-355.22702406,0.00048319,30]
[320084071,1711141104139,-261.9463355,0.00048329,120]
[320084072,1711141104165,-209.38671803,0.00048329,120]
[320084073,1711141104189,-150.0,0.00048346,30]
[320084074,1711141104212,-780.41480548,0.00048369,30]
[320084075,1711141104237,-284.76107608,0.00048369,30]
[320084076,1711141104262,-355.22702406,0.00048369,30]
[320084077,1711141104288,-150.0,0.00048376,30]
[320084078,1711141104312,-150.0,0.0004839,30]
[320084079,1711141104339,-268.11,0.000484,120]
[320084080,1711141104364,-780.41480548,0.00048418,30]
[320084081,1711141104389,-284.76107608,0.00048418,30]
[320084082,1711141104416,-355.22702406,0.00048418,30]
[320084083,1711141104441,-150.0,0.00048434,30]
[320084084,1711141104465,-150.0,0.00048467,30]
[320084085,1711141104492,-780.41480548,0.00048468,30]
[320084086,1711141104516,-284.76107608,0.00048468,30]
[320084087,1711141104544,-355.22702406,0.00048468,30]
[320084088,1711141104567,-521348.4142033,0.0004847,120]
[320084089,1711141104590,-150.0,0.00048493,30]
[320084090,1711141104617,-151.032215,0.00048498,48]
[320084091,1711141104640,-250.0,0.000485,120]
[320084092,1711141104662,-10000.0,0.000485,120]
[320084093,1711141104689,-220796.59267713,0.000485,30]
[320084094,1711141104712,-780.41480548,0.00048518,30]
[320084095,1711141104735,-284.76107608,0.00048518,30]
[320084096,1711141104758,-355.22702406,0.00048518,30]
[320084097,1711141104782,-164.24866839,0.00048521,60]
[320084098,1711141104805,-150.0,0.00048522,30]
[320084099,1711141104829,-150.0,0.00048544,30]
[320084100,1711141104852,-780.41480548,0.00048568,30]
[320084101,1711141104875,-284.76107608,0.00048568,30]
[320084102,1711141104899,-355.22702406,0.00048568,30]
[320084103,1711141104926,-150.0,0.00048611,30]
[320084104,1711141104949,-150.0,0.00048611,30]
[320084105,1711141104971,-780.41480548,0.00048618,30]
[320084106,1711141104993,-284.76107608,0.00048618,30]
[320084107,1711141105228,-355.22702406,0.00048618,30]
[320084108,1711141105252,-150.0,0.00048622,30]
[320084109,1711141105274,-500.0,0.00048632,30]
[320084110,1711141105297,-780.41480548,0.00048667,30]
[320084111,1711141105320,-284.76107608,0.00048667,30]
[320084112,1711141105343,-355.22702406,0.00048667,30]
[320084113,1711141105367,-157.58853873,0.00048676,39]
[320084114,1711141105390,-150.0,0.00048699,30]
[320084115,1711141105412,-150.0,0.00048699,30]
[320084116,1711141105438,-58375.3737089,0.000487,120]
[320084117,1711141105462,-5490.0,0.000487,117]
[320084118,1711141105485,-780.41480548,0.00048717,30]
[320084119,1711141105509,-284.76107608,0.00048717,30]
[320084120,1711141105535,-355.22702406,0.00048717,30]
[320084121,1711141105559,-150.0,0.00048728,30]
[320084122,1711141105584,-780.41480548,0.00048767,30]
[320084123,1711141105609,-284.76107608,0.00048767,30]
[320084124,1711141105633,-355.22702406,0.00048767,30]
[320084125,1711141105657,-150.0,0.00048767,30]
[320084126,1711141105686,-150.0,0.00048776,30]
[320084127,1711141105712,-150.0,0.00048787,30]
[320084128,1711141105738,-333.031912,0.00048798,56]
[320084129,1711141105761,-7000.39140103,0.000488,120]
[320084130,1711141105784,-4500.0,0.000488,120]
[320084131,1711141105807,-780.41480548,0.00048817,30]
[320084132,1711141105830,-284.76107608,0.00048817,30]
[320084133,1711141105853,-355.22702406,0.00048817,30]